fUST/lending_fUST_20240820
["ID","MTS","AMOUNT","RATE_DAILY","PERIOD"]
[335314935,1724103042907,-500.0,0.00016438,2]
[335314936,1724103042919,-500.0,0.00016438,2]
[335314937,1724103042931,-500.0,0.00016438,2]
[335314938,1724103042944,-500.0,0.00016438,2]
[335314939,1724103042954,-500.0,0.00016438,2]
[335314940,1724103042966,-500.0,0.00016438,2]
[335314941,1724103042979,-505.76315986,0.00016438,2]
[335314942,1724103042992,-500.0,0.00016438,2]
[335314944,1724103043005,-500.0,0.00016438,2]
[335314946,1724103043015,-527.57,0.00016438,2]
[335314949,1724103043027,-500.0,0.00016438,2]
[335314951,1724103043037,-976.77,0.00016438,2]
[335314953,1724103043048,-462.32098274,0.00016438,2]
[335314955,1724103043058,-500.0,0.00016438,2]
[335314957,1724103043069,-500.0,0.00016438,2]
[335314958,1724103043079,-500.0,0.00016438,2]
[335314959,1724103043090,-523.62499206,0.00016438,2]
[335314961,1724103043101,-1817.1,0.00016438,2]
[335314963,1724103043112,-1018.11,0.00016438,2]
[335314967,1724103043124,-500.0,0.00016438,2]
[335314969,1724103043136,-737.74,0.00016438,2]
[335314971,1724103043147,-500.0,0.00016438,2]
[335314973,1724103043159,-379.69676497,0.00016438,2]
[335314975,1724103043170,-500.0,0.00016438,2]
[335314978,1724103043181,-500.0,0.00016438,2]
[335314981,1724103043194,-500.0,0.00016438,2]
[335314984,1724103043209,-500.0,0.00016438,2]
[335314986,1724103043221,-899.47,0.00016438,2]
[335314987,1724103043233,-500.0,0.00016438,2]
[335314989,1724103043245,-500.0,0.00016438,2]
[335314990,1724103043258,-472.05625714,0.00016438,2]
[335314991,1724103043271,-500.0,0.00016438,2]
[335314992,1724103043282,-500.0,0.00016438,2]
[335314993,1724103043294,-1174.39,0.00016438,2]
[335314994,1724103043306,-500.0,0.00016438,2]
[335314995,1724103043320,-500.0,0.00016438,2]
[335314996,1724103043332,-500.0,0.00016438,2]
[335314997,1724103043344,-1250.66428932,0.00016445,2]
[335314998,1724103043357,-200.0,0.00016473,2]
[335314999,1724103043368,-200.0,0.00016473,2]
[335315000,1724103043379,-198.27553857,0.00016473,2]
[335315001,1724103043391,-1414.0,0.00016514,2]
[335315002,1724103043404,-150.887,0.00016514,2]
[335315003,1724103043416,-7726.0,0.00016514,2]
[335315004,1724103043426,-7731.221,0.00016514,2]
[335315005,1724103043436,-521.0,0.00016514,2]
[335315006,1724103043448,-150.112233,0.000166,2]
[335315007,1724103043461,-162.161318,0.000166,2]
[335315008,1724103043472,-18127.44632758,0.00016601,2]
[335315009,1724103043483,-415.56990217,0.00016612,2]
[335315010,1724103043494,-153.0,0.00016623,2]
[335315011,1724103043508,-153.0,0.00016623,2]
[335315012,1724103043521,-153.0,0.00016623,2]
[335315013,1724103043533,-153.0,0.00016623,2]
[335315014,1724103043545,-823.0,0.00016662,2]
[335315015,1724103043555,-1250.66428932,0.00016665,2]
[335315017,1724103043565,-300.0,0.000167,6]
[335315019,1724103043575,-151.0,0.00016702,2]
[335315021,1724103043586,-151.0,0.00016702,2]
[335315023,1724103043597,-151.0,0.00016702,2]
[335315025,1724103043608,-343.550607,0.00016702,2]
[335315026,1724103043619,-343.550607,0.00016702,2]
[335315027,1724103043631,-500.0,0.00016712,2]
[335315028,1724103043641,-500.0,0.00016712,2]
[335315029,1724103043654,-500.0,0.00016712,2]
[335315030,1724103043664,-503.29215947,0.00016712,2]
[335315031,1724103043676,-500.0,0.00016712,2]
[335315032,1724103043687,-500.0,0.00016712,2]
[335315033,1724103043698,-500.0,0.00016712,2]
[335315034,1724103043711,-506.73512828,0.00016712,2]
[335315035,1724103043723,-525.65,0.00016712,2]
[335315036,1724103043733,-500.0,0.00016712,2]
[335315037,1724103043743,-500.0,0.00016712,2]
[335315038,1724103043753,-357.77482685,0.00016712,2]
[335315039,1724103043772,-475.54517315,0.00016712,2]
[335315040,1724103043784,-252.68482685,0.00016712,2]
[335315041,1724103043799,-247.31517315,0.00016712,2]
[335315042,1724103043811,-500.0,0.00016712,2]
[335315043,1724103043821,-500.0,0.00016712,2]
[335315044,1724103043834,-506.23434971,0.00016712,2]
[335315045,1724103043846,-504.63429681,0.00016712,2]
[335315046,1724103043858,-508.31808959,0.00016712,2]
[335315047,1724103043872,-500.0,0.00016712,2]
[335315048,1724103043882,-551.62,0.00016712,2]
[335315049,1724103043892,-2393.39,0.00016712,2]
[335315050,1724103043902,-926.38,0.00016712,2]
[335315051,1724103043913,-500.0,0.00016712,2]
[335315052,1724103043926,-500.0,0.00016712,2]
[335315053,1724103043938,-500.0,0.00016712,2]
[335315054,1724103043949,-500.0,0.00016712,2]
[335315055,1724103043961,-500.0,0.00016712,2]
[335315056,1724103043971,-500.0,0.00016712,2]
[335315057,1724103043983,-578.8715345,0.00016712,2]
[335315058,1724103043995,-1186.43,0.00016712,2]
[335315059,1724103044008,-500.0,0.00016712,2]
[335315060,1724103044018,-500.0,0.00016712,2]
[335315061,1724103044030,-500.0,0.00016712,2]
[335315062,1724103044042,-500.0,0.00016712,2]
[335315063,1724103044054,-500.0,0.00016712,2]
[335315064,1724103044065,-500.0,0.00016712,2]
[335315065,1724103044079,-500.0,0.00016712,2]
[335315066,1724103044090,-500.0,0.00016712,2]
[335315067,1724103044100,-500.0,0.00016712,2]
[335315068,1724103044110,-500.0,0.00016712,2]
[335315069,1724103044121,-500.0,0.00016712,2]
[335315070,1724103044132,-519.08,0.00016712,2]
[335315071,1724103044143,-500.0,0.00016712,2]
[335315072,1724103044154,-500.0,0.00016712,2]
[335315073,1724103044165,-500.0,0.00016712,2]
[335315074,1724103044175,-500.0,0.00016712,2]
[335315075,1724103044185,-541.97942299,0.00016712,2]
[335315076,1724103044196,-501.61602314,0.00016712,2]
[335315077,1724103044208,-500.0,0.00016712,2]
[335315078,1724103044219,-500.0,0.00016712,2]
[335315079,1724103044230,-506.93036892,0.00016712,2]
[335315080,1724103044242,-500.0,0.00016712,2]
[335315081,1724103044254,-500.0,0.00016712,2]
[335315082,1724103044267,-646.33081111,0.00016712,2]
[335315083,1724103044278,-500.0,0.00016712,2]
[335315084,1724103044290,-500.0,0.00016712,2]
[335315085,1724103044301,-500.0,0.00016712,2]
[335315086,1724103044312,-500.0,0.00016712,2]
[335315087,1724103044326,-500.0,0.00016712,2]
[335315088,1724103044337,-500.0,0.00016712,2]
[335315089,1724103044347,-747.65,0.00016712,2]
[335315090,1724103044359,-500.0,0.00016712,2]
[335315091,1724103044369,-500.0,0.00016712,2]
[335315092,1724103044379,-500.0,0.00016712,2]
[335315093,1724103044391,-500.0,0.00016712,2]
[335315094,1724103044403,-500.0,0.00016712,2]
[335315095,1724103044413,-500.0,0.00016712,2]
[335315096,1724103044424,-500.0,0.00016712,2]
[335315097,1724103044435,-500.0,0.00016712,2]
[335315098,1724103044446,-252.8575071,0.00016712,2]
[335315099,1724103044457,-500.0,0.00016712,2]
[335315100,1724103044468,-500.0,0.00016712,2]
[335315101,1724103044479,-500.0,0.00016712,2]
[335315102,1724103044490,-500.0,0.00016712,2]
[335315103,1724103044499,-500.0,0.00016712,2]
[335315104,1724103044509,-500.0,0.00016712,2]
[335315105,1724103044519,-500.0,0.00016712,2]
[335315106,1724103044529,-500.0,0.00016712,2]
[335315107,1724103044539,-500.0,0.00016712,2]
[335315108,1724103044549,-500.0,0.00016712,2]
[335315109,1724103044745,-500.0,0.00016712,2]
[335315110,1724103044755,-500.0,0.00016712,2]
[335315111,1724103044765,-500.0,0.00016712,2]
[335315112,1724103044774,-500.0,0.00016712,2]
[335315113,1724103044783,-500.0,0.00016712,2]
[335315114,1724103044793,-500.0,0.00016712,2]
[335315115,1724103044802,-500.0,0.00016712,2]
[335315116,1724103044812,-500.0,0.00016712,2]
[335315117,1724103044821,-500.0,0.00016712,2]
[335315118,1724103044831,-500.0,0.00016712,2]
[335315119,1724103044840,-500.0,0.00016712,2]
[335315120,1724103044849,-500.0,0.00016712,2]
[335315121,1724103044859,-476.87732872,0.00016712,2]
[335315122,1724103044868,-1389.15,0.00016712,2]
[335315123,1724103044877,-500.0,0.00016712,2]
[335315124,1724103044886,-500.0,0.00016712,2]
[335315125,1724103044896,-1450.92,0.00016712,2]
[335315126,1724103044905,-500.0,0.00016712,2]
[335315127,1724103044915,-500.0,0.00016712,2]
[335315128,1724103044924,-500.0,0.00016712,2]
[335315129,1724103044933,-1187.24,0.00016712,2]
[335315130,1724103044942,-611.65,0.00016712,2]
[335315131,1724103044951,-500.0,0.00016712,2]
[335315132,1724103044960,-500.0,0.00016712,2]
[335315133,1724103044969,-500.0,0.00016712,2]
[335315134,1724103044978,-500.0,0.00016712,2]
[335315135,1724103044987,-500.0,0.00016712,2]
[335315136,1724103044997,-500.0,0.00016712,2]
[335315137,1724103045006,-500.0,0.00016712,2]
[335315138,1724103045015,-500.0,0.00016712,2]
[335315139,1724103045025,-500.0,0.00016712,2]
[335315140,1724103045034,-500.0,0.00016712,2]
[335315141,1724103045043,-500.0,0.00016712,2]
[335315142,1724103045053,-500.0,0.00016712,2]
[335315143,1724103045062,-500.0,0.00016712,2]
[335315144,1724103045071,-375.52848703,0.00016712,2]
[335315145,1724103045080,-500.0,0.00016712,2]
[335315146,1724103045090,-500.0,0.00016712,2]
[335315147,1724103045099,-3798.32,0.00016712,2]
[335315148,1724103045110,-518.3864646,0.00016712,2]
[335315149,1724103045119,-500.0,0.00016712,2]
[335315150,1724103045129,-500.0,0.00016712,2]
[335315151,1724103045138,-434.70634229,0.00016712,2]
[335315152,1724103045146,-500.0,0.00016712,2]
[335315153,1724103045155,-500.0,0.00016712,2]
[335315154,1724103045165,-690.73,0.00016712,2]
[335315155,1724103045174,-500.0,0.00016712,2]
[335315156,1724103045183,-500.0,0.00016712,2]
[335315157,1724103045192,-500.0,0.00016712,2]
[335315158,1724103045202,-500.0,0.00016712,2]
[335315159,1724103045213,-446.98706339,0.00016712,2]
[335315160,1724103045229,-617.64,0.00016712,2]
[335315161,1724103045239,-500.0,0.00016712,2]
[335315162,1724103045249,-500.0,0.00016712,2]
[335315163,1724103045258,-500.0,0.00016712,2]
[335315164,1724103045268,-500.0,0.00016712,2]
[335315165,1724103045278,-500.0,0.00016712,2]
[335315166,1724103045288,-500.0,0.00016712,2]
[335315167,1724103045298,-500.0,0.00016712,2]
[335315168,1724103045307,-500.0,0.00016712,2]
[335315169,1724103045317,-500.0,0.00016712,2]
[335315170,1724103045330,-500.0,0.00016712,2]
[335315171,1724103045339,-527.57,0.00016712,2]
[335315172,1724103045348,-433.95937145,0.00016712,2]
[335315217,1724104151100,-2593.59413745,8.521e-05,2]
[335315218,1724104151123,-2593.59413745,8.673e-05,2]
[335315219,1724104151147,-60.36534163,8.769e-05,2]
[335315224,1724104154131,-114.3513297,8.769e-05,2]
[335315225,1724104154152,-152.37144385,8.769e-05,2]
[335315274,1724104232603,-273.37336231,9.9e-05,2]
[335315277,1724104232612,-492.40776625,0.0001295,2]
[335315279,1724104232622,-342.65845262,0.00012991,2]
[335315281,1724104232632,-166.666666,0.00013635,2]
[335315305,1724104232798,-194.82337617,0.00013699,2]
[335315307,1724104232808,-166.666666,0.00013777,2]
[335315309,1724104232818,-166.666666,0.00013919,2]
[335315311,1724104232827,-166.666666,0.00014061,2]
[335315313,1724104232837,-166.666666,0.00014203,2]
[335315315,1724104232846,-643.066927,0.00014247,2]
[335315317,1724104232855,-166.666666,0.00014345,2]
[335315319,1724104232865,-300.0,0.00015244,2]
[335315321,1724104232874,-153.0,0.00015245,2]
[335315323,1724104232884,-153.0,0.00015245,2]
[335315325,1724104232894,-153.0,0.00015245,2]
[335315327,1724104232904,-153.0,0.00015245,2]
[335315329,1724104232913,-153.0,0.00015245,2]
[335315331,1724104232923,-153.0,0.00015245,2]
[335315333,1724104232933,-153.0,0.00015245,2]
[335315335,1724104232942,-153.0,0.00015245,2]
[335315337,1724104232951,-153.0,0.00015245,2]
[335315339,1724104232961,-153.0,0.00015245,2]
[335315341,1724104232970,-153.0,0.00015245,2]
[335315344,1724104232980,-153.0,0.00015253,2]
[335315346,1724104232989,-153.0,0.00015253,2]
[335315348,1724104232999,-153.0,0.00015253,2]
[335315350,1724104233008,-153.0,0.00015253,2]
[335315352,1724104233018,-371.8885009,0.00015394,2]
[335315354,1724104233028,-574.18002641,0.00015571,2]
[335315356,1724104233038,-336.82525701,0.000157,2]
[335315358,1724104233048,-358.190943,0.0001589,2]
[335315360,1724104233059,-207.21742131,0.00015899,2]
[335315362,1724104233068,-750.39857362,0.000159,2]
[335315364,1724104233079,-200.0,0.00015973,2]
[335315366,1724104233088,-21688.63820571,0.0001599,2]
[335315500,1724104238667,-273.37336231,9.9e-05,2]
[335315501,1724104238677,-59422.15121789,0.0001599,2]
[335315502,1724104238687,-375.63724868,0.00015999,2]
[335315503,1724104238700,-500.0,0.00015999,2]
[335315504,1724104238710,-500.0,0.00015999,2]
[335315505,1724104238721,-500.0,0.00015999,2]
[335315506,1724104238730,-500.0,0.00015999,2]
[335315507,1724104238741,-500.0,0.00015999,2]
[335315508,1724104238751,-550.08979709,0.00015999,2]
[335315509,1724104238760,-500.0,0.00015999,2]
[335315510,1724104238772,-100000.0,0.00016,2]
[335315511,1724104238782,-9444.39953667,0.00016,2]
[335315512,1724104238791,-750.39857359,0.00016033,2]
[335315513,1724104238800,-207.5740843,0.00016107,2]
[335315514,1724104238810,-207.5740843,0.00016107,2]
[335315515,1724104238819,-207.5740843,0.00016107,2]
[335315516,1724104238829,-153.0,0.00016107,2]
[335315517,1724104238838,-153.0,0.00016107,2]
[335315518,1724104238848,-306.0,0.00016107,2]
[335315519,1724104238857,-153.0,0.00016107,2]
[335315520,1724104238867,-153.0,0.00016107,2]
[335315521,1724104238877,-153.0,0.00016107,2]
[335315522,1724104238886,-153.0,0.00016107,2]
[335315523,1724104238895,-207.5740843,0.00016107,2]
[335315524,1724104238905,-153.0,0.00016107,2]
[335315525,1724104238915,-207.5740843,0.00016107,2]
[335315526,1724104238925,-153.0,0.00016107,2]
[335315527,1724104238934,-153.0,0.00016107,2]
[335315528,1724104238944,-207.5740843,0.00016107,2]
[335315529,1724104238953,-207.5740843,0.00016107,2]
[335315530,1724104238963,-207.5740843,0.00016107,2]
[335315531,1724104238972,-408.9517048,0.0001611,2]
[335315532,1724104238981,-5244.78933856,0.00016141,2]
[335315533,1724104238991,-1110.9613583,0.00016146,2]
[335315534,1724104239000,-953.38755458,0.00016163,2]
[335315535,1724104239010,-750.39857359,0.00016166,2]
[335315536,1724104239020,-408.9517048,0.00016215,2]
[335315537,1724104239029,-408.9517048,0.00016215,2]
[335315538,1724104239039,-750.39857359,0.00016299,2]
[335315539,1724104239048,-162221.578847,0.00016428,2]
[335315540,1724104239058,-750.39857359,0.00016432,2]
[335315541,1724104239067,-500.0,0.00016438,2]
[335315542,1724104239077,-500.0,0.00016438,2]
[335315543,1724104239086,-500.0,0.00016438,2]
[335315544,1724104239095,-500.0,0.00016438,2]
[335315545,1724104239105,-500.0,0.00016438,2]
[335315546,1724104239114,-500.0,0.00016438,2]
[335315547,1724104239123,-500.0,0.00016438,2]
[335315548,1724104239133,-317.37441493,0.00016438,2]
[335315549,1724104239142,-500.0,0.00016438,2]
[335315550,1724104239152,-500.0,0.00016438,2]
[335315551,1724104239165,-500.0,0.00016438,2]
[335315552,1724104239176,-500.0,0.00016438,2]
[335315553,1724104239185,-500.0,0.00016438,2]
[335315554,1724104239194,-500.0,0.00016438,2]
[335315555,1724104239203,-500.0,0.00016438,2]
[335315556,1724104239212,-500.0,0.00016438,2]
[335315557,1724104239221,-500.0,0.00016438,2]
[335315558,1724104239230,-500.0,0.00016438,2]
[335315559,1724104239240,-500.0,0.00016438,2]
[335315560,1724104239249,-500.0,0.00016438,2]
[335315561,1724104239263,-500.0,0.00016438,2]
[335315562,1724104239272,-500.0,0.00016438,2]
[335315563,1724104239283,-500.0,0.00016438,2]
[335315564,1724104239293,-500.0,0.00016438,2]
[335315565,1724104239303,-500.0,0.00016438,2]
[335315566,1724104239313,-500.0,0.00016438,2]
[335315567,1724104239322,-500.0,0.00016438,2]
[335315568,1724104239332,-500.0,0.00016438,2]
[335315569,1724104239342,-500.0,0.00016438,2]
[335315570,1724104239352,-203.52777845,0.00016438,2]
[335315571,1724104239364,-500.0,0.00016438,2]
[335315572,1724104239373,-685.34,0.00016438,2]
[335315573,1724104239383,-500.0,0.00016438,2]
[335315574,1724104239393,-500.0,0.00016438,2]
[335315575,1724104239403,-500.0,0.00016438,2]
[335315576,1724104239412,-500.0,0.00016438,2]
[335315577,1724104239422,-500.0,0.00016438,2]
[335315578,1724104239431,-2193.94,0.00016438,2]
[335315579,1724104239441,-849.18,0.00016438,2]
[335315580,1724104239451,-500.0,0.00016438,2]
[335315581,1724104239461,-500.0,0.00016438,2]
[335315582,1724104239471,-500.0,0.00016438,2]
[335315583,1724104239481,-500.0,0.00016438,2]
[335315584,1724104239491,-500.0,0.00016438,2]
[335315585,1724104239500,-500.0,0.00016438,2]
[335315586,1724104239511,-500.0,0.00016438,2]
[335315587,1724104239520,-500.0,0.00016438,2]
[335315588,1724104239530,-500.0,0.00016438,2]
[335315589,1724104239541,-500.0,0.00016438,2]
[335315590,1724104239551,-500.0,0.00016438,2]
[335315591,1724104239562,-500.0,0.00016438,2]
[335315592,1724104239572,-500.0,0.00016438,2]
[335315593,1724104239583,-500.0,0.00016438,2]
[335315594,1724104239593,-500.0,0.00016438,2]
[335315595,1724104239604,-500.0,0.00016438,2]
[335315596,1724104239614,-500.0,0.00016438,2]
[335315597,1724104239624,-500.0,0.00016438,2]
[335315598,1724104239636,-500.0,0.00016438,2]
[335315599,1724104239648,-500.0,0.00016438,2]
[335315600,1724104239659,-500.0,0.00016438,2]
[335315601,1724104239668,-1087.56,0.00016438,2]
[335315602,1724104239679,-500.0,0.00016438,2]
[335315603,1724104239691,-500.0,0.00016438,2]
[335315604,1724104239706,-500.0,0.00016438,2]
[335315605,1724104239717,-500.0,0.00016438,2]
[335315606,1724104239728,-500.0,0.00016438,2]
[335315607,1724104239739,-500.0,0.00016438,2]
[335315608,1724104239750,-646.33081111,0.00016438,2]
[335315609,1724104239761,-500.0,0.00016438,2]
[335315610,1724104239772,-500.0,0.00016438,2]
[335315611,1724104239782,-500.0,0.00016438,2]
[335315612,1724104239793,-500.0,0.00016438,2]
[335315613,1724104239805,-500.0,0.00016438,2]
[335315614,1724104239817,-500.0,0.00016438,2]
[335315615,1724104239828,-500.0,0.00016438,2]
[335315616,1724104239840,-173.17066174,0.00016438,2]
[335315617,1724104239852,-500.0,0.00016438,2]
[335315618,1724104239862,-500.0,0.00016438,2]
[335315619,1724104239872,-500.0,0.00016438,2]
[335315620,1724104239882,-500.0,0.00016438,2]
[335315621,1724104239893,-500.0,0.00016438,2]
[335315622,1724104239904,-500.0,0.00016438,2]
[335315623,1724104239916,-500.0,0.00016438,2]
[335315624,1724104239927,-861.99,0.00016438,2]
[335315625,1724104239938,-500.0,0.00016438,2]
[335315626,1724104239948,-479.33113789,0.00016438,2]
[335315627,1724104239960,-500.0,0.00016438,2]
[335315628,1724104239971,-500.0,0.00016438,2]
[335315629,1724104239980,-500.0,0.00016438,2]
[335315630,1724104239992,-476.87732872,0.00016438,2]
[335315631,1724104240002,-500.0,0.00016438,2]
[335315632,1724104240013,-1331.26,0.00016438,2]
[335315633,1724104240022,-1137.77,0.00016438,2]
[335315634,1724104240033,-500.0,0.00016438,2]
[335315635,1724104240043,-500.0,0.00016438,2]
[335315636,1724104240054,-1390.47,0.00016438,2]
[335315637,1724104240063,-500.0,0.00016438,2]
[335315638,1724104240073,-586.17,0.00016438,2]
[335315639,1724104240084,-500.0,0.00016438,2]
[335315640,1724104240093,-500.0,0.00016438,2]
[335315641,1724104240103,-500.0,0.00016438,2]
[335315642,1724104240113,-500.0,0.00016438,2]
[335315643,1724104240125,-500.0,0.00016438,2]
[335315644,1724104240136,-763.87,0.00016438,2]
[335315645,1724104240146,-500.0,0.00016438,2]
[335315646,1724104240159,-500.0,0.00016438,2]
[335315647,1724104240168,-375.52848703,0.00016438,2]
[335315648,1724104240177,-500.0,0.00016438,2]
[335315649,1724104240187,-518.3864646,0.00016438,2]
[335315650,1724104240196,-500.0,0.00016438,2]
[335315651,1724104240205,-500.0,0.00016438,2]
[335315652,1724104240215,-661.95,0.00016438,2]
[335315653,1724104240225,-500.0,0.00016438,2]
[335315654,1724104240235,-500.0,0.00016438,2]
[335315655,1724104240245,-434.70634229,0.00016438,2]
[335315656,1724104240255,-446.98706339,0.00016438,2]
[335315657,1724104240266,-500.0,0.00016438,2]
[335315658,1724104240277,-500.0,0.00016438,2]
[335315659,1724104240288,-500.0,0.00016438,2]
[335315660,1724104240300,-3640.06,0.00016438,2]
[335315663,1724104240312,-500.0,0.00016438,2]
[335315665,1724104240322,-500.0,0.00016438,2]
[335315666,1724104240333,-500.0,0.00016438,2]
[335315667,1724104240346,-500.0,0.00016438,2]
[335315668,1724104240358,-500.0,0.00016438,2]
[335315669,1724104240367,-500.0,0.00016438,2]
[335315670,1724104240379,-591.91,0.00016438,2]
[335315671,1724104240389,-500.0,0.00016438,2]
[335315672,1724104240399,-500.0,0.00016438,2]
[335315673,1724104240413,-500.0,0.00016438,2]
[335315674,1724104240424,-500.0,0.00016438,2]
[335315675,1724104240434,-500.0,0.00016438,2]
[335315676,1724104240444,-500.0,0.00016438,2]
[335315678,1724104240454,-500.0,0.00016438,2]
[335315680,1724104240465,-577.76488072,0.00016438,2]
[335315682,1724104240475,-1523.7,0.00016438,2]
[335315683,1724104240485,-500.0,0.00016438,2]
[335315684,1724104240495,-403.08913643,0.00016438,2]
[335315686,1724104240507,-500.0,0.00016438,2]
[335315687,1724104240518,-504.63429681,0.00016438,2]
[335315688,1724104240527,-508.31808959,0.00016438,2]
[335315689,1724104240539,-505.58,0.00016438,2]
[335315690,1724104240548,-707.0,0.00016438,2]
[335315691,1724104240558,-975.69,0.00016438,2]
[335315692,1724104240567,-500.0,0.00016438,2]
[335315694,1724104240579,-936.08,0.00016438,2]
[335315696,1724104240590,-1125.45,0.00016438,2]
[335315698,1724104240609,-506.23434971,0.00016438,2]
[335315699,1724104240621,-500.0,0.00016438,2]
[335315701,1724104240631,-276.64655862,0.00016438,2]
[335315703,1724104240642,-500.0,0.00016438,2]
[335315705,1724104240654,-500.0,0.00016438,2]
[335315707,1724104240666,-500.0,0.00016438,2]
[335315709,1724104240677,-551.62,0.00016438,2]
[335315711,1724104240686,-150.0,0.00016451,2]
[335315713,1724104240699,-200.0,0.00016473,2]
[335315716,1724104240711,-3063.01786875,0.00016502,2]
[335315718,1724104240720,-5328.69624806,0.00016507,2]
[335315720,1724104240731,-250651.83699352,0.00016532,5]
[335315736,1724104240870,-678.8990031,0.00016532,5]
[335315738,1724104240882,-42446.91,0.00016532,5]
[335315744,1724104240932,-21451.77622741,0.00016532,5]
[335315747,1724104240942,-53627.52640709,0.00016532,2]
[335316047,1724104243750,-255.0,0.00015563,2]
[335316053,1724104243807,-319.18002641,0.00015563,2]
[335316055,1724104243817,-500.0,0.00016438,2]
[335316057,1724104243827,-4993.33619941,0.00016532,2]
[335316150,1724104246693,-207.5740843,0.00016107,2]
[335316152,1724104246706,-852.4,0.00016438,2]
[335316154,1724104246715,-22489.9268171,0.00016532,2]
[335316156,1724104246729,-150.0,0.00016542,2]
[335316158,1724104246740,-521.0,0.00016542,2]
[335316159,1724104246752,-1414.0,0.00016542,2]
[335316162,1724104246761,-7726.0,0.00016542,2]
[335316166,1724104246775,-7731.221,0.00016542,2]
[335316168,1724104246786,-150.0,0.00016542,2]
[335316169,1724104246796,-150.0,0.00016542,2]
[335316171,1724104246807,-200.0,0.00016573,2]
[335316173,1724104246819,-74934.51347622,0.00016592,2]
[335316190,1724104688268,1833.95,0.00021,120]
[335316202,1724105227130,-273.37336231,9.801e-05,2]
[335316203,1724105227152,-593.9,0.00010959,2]
[335316204,1724105227175,-305.66806289,0.00013051,2]
[335316205,1724105227196,-342.65845262,0.00013333,2]
[335316206,1724105227217,-154.69833824,0.00013333,2]
[335316207,1724105227238,-493.30764145,0.00013333,2]
[335316208,1724105227261,-194.82337617,0.00013699,2]
[335316209,1724105227282,-362.27815603,0.00014245,2]
[335316210,1724105227303,-222.44078643,0.00014245,2]
[335316211,1724105227325,-507.43480919,0.00014247,2]
[335316212,1724105238291,-600.88577429,0.00014245,2]
[335316213,1724105238314,-215.09339058,0.00014245,2]
[335316214,1724105238338,-91.77571775,0.00014247,2]
[335316301,1724105431870,-100.86165362,9.703e-05,2]
[335316472,1724105437971,-116.52851501,9.703e-05,2]
[335316474,1724105437983,-217.39016863,9.801e-05,2]
[335316476,1724105437994,-694.11289231,0.00013698,2]
[335316478,1724105438003,-44.85935313,0.00013698,2]
[335316652,1724105440046,-154.69833824,0.00013697,2]
[335316653,1724105440058,-131.5339726,0.00013698,2]
[335316654,1724105440070,-154.79101977,0.00013971,2]
[335316656,1724105440081,-492.40776625,0.00013971,2]
[335316658,1724105440092,-194.82337617,0.00014245,2]
[335316660,1724105440102,-300.0,0.00014246,2]
[335316661,1724105440113,-72.79749406,0.00014247,2]
[335316662,1724105440124,-245.3630242,0.00014247,2]
[335316663,1724105440137,-3472.24991574,0.00014247,2]
[335316664,1724105440150,-2201.5957072,0.00014247,2]
[335316665,1724105440160,-458.24555011,0.00014247,2]
[335316666,1724105440170,-3563.37738581,0.00014247,2]
[335316667,1724105440182,-178.571428,0.00014391,2]